[Event "Vezerkepzo GM May 2022"]
[Site "Budapest"]
[Date "2022.05.24"]
[Round "9.4"]
[White "Pacher, Milan"]
[Black "Mazur, Stefan"]
[Result "1-0"]
[ECO "A45"]
[WhiteElo "2394"]
[BlackElo "2423"]
[Annotator "TA"]
[PlyCount "107"]
[EventDate "2022.05.18"]
[EventType "tourn"]
[EventCountry "HUN"]
[SourceTitle "playchess.com"]
[Source "ChessBase"]
[SourceQuality "1"]
[TimeControl "5400+30"]

{[%evp 9,107,-3,44,10,19,10,11,10,8,8,10,18,16,0,0,-19,25,-44,-48,-135,-135,-130,-116,-171,-139,-162,-156,-185,-161,-152,-154,-190,-198,-195,-145,-149,-148,-156,-140,-145,-140,-161,-156,-146,-153,-160,-112,-103,-113,-119,-112,-100,-85,-109,-39,-46,103,105,92,81,412,354,402,402,388,407,356,389,383,360,488,467,897,894,739,475,552,543,537,515,1900,1947,1914,1748,29972,29971,29982,29983,29978,29979,29967,29969,5187,5187,29977,29979,29964,29965,4133,1531]} 1. d4 {[%emt 0:00:05]} Nf6 {[%emt 0:00:16]} 2. Bg5 {[%emt 0:00:11]} Ne4 {[%emt 0:02:22]} 3. h4 {[%emt 0:00:21]} c5 {[%emt 0:02:25]} 4. d5 {[%emt 0:01:09]} Nxg5 {[%emt 0:09:44]} 5. hxg5 {[%emt 0:00:04]} g6 {[%emt 0:01:16]} (5... e5 $11 {deserves consideration.}) 6. Nf3 {[%emt 0:03:30][%cal Od5d6] A45: Trompowsky Attack.} Bg7 {[%emt 0:00:40]} 7. c3 {[%emt 0:00:16]} d6 {[%emt 0:04:10]} 8. Nbd2 {[%emt 0:01:01] The position is equal.} b5 {[%emt 0:10:26] [#]} 9. e4 $146 {[%emt 0:01:13]} ({Predecessor:} 9. Qc2 a5 10. e3 Ba6 11. Be2 Nd7 12. Ng1 Nb6 13. e4 Qd7 14. f4 e6 15. Bg4 {0-1 (47) Have,D (1947)-Estevez Hernandez,C (1732) Tenerife 2009}) 9... a6 {[%emt 0:07:54]} 10. a4 {[%emt 0:02:08]} b4 {[%emt 0:00:28]} 11. cxb4 {[%emt 0:00:06]} cxb4 {[%emt 0:00:50]} 12. Nc4 {[%emt 0:01:23]} Nd7 {[%emt 0:04:43]} 13. Nfd2 {[%emt 0:16:28]} (13. a5 $11) 13... Nc5 $15 {[%emt 0:07:17]} 14. Be2 {[%emt 0:01:43]} (14. Qf3 $15) 14... O-O $17 {[%emt 0:06:52]} 15. O-O {[%emt 0:13:22]} e6 {[%emt 0:05:03]} 16. Bf3 {[%emt 0:07:51]} (16. Rc1 $17 {might work better.}) 16... Qxg5 {[%emt 0:03:25]} 17. e5 {[%emt 0:09:13]} dxe5 {[%emt 0:06:53]} 18. d6 {[%emt 0:13:02]} Bb7 {[%emt 0:01:10]} 19. Bxb7 {[%emt 0:00:38]} Nxb7 {[%emt 0:00:06]} 20. Rc1 {[%emt 0:03:34]} Rad8 $1 {[%emt 0:03:33]} 21. Qe2 {[%emt 0:02:42]} Qh5 {[%emt 0:05:17]} ({And not} 21... Nxd6 22. Nxd6 Rxd6 23. Ne4 $11) (21... Qh6 $19 22. Nf3 Nxd6 23. Ncxe5 Nf5) 22. Qxh5 {[%emt 0:07:15]} gxh5 {[%emt 0:00:03]} 23. Ne4 {[%emt 0:00:03]} Bh6 {[%emt 0:07:22]} 24. Nf6+ {[%emt 0:08:02]} Kg7 {[%emt 0:01:13]} 25. Nxh5+ {[%emt 0:00:04]} Kg6 {[%emt 0:00:05]} 26. Nxe5+ {[%emt 0:01:00]} Kxh5 {[%emt 0:01:50]} 27. g4+ {[%emt 0:00:52]} Kg5 {[%emt 0:01:57]} ({Black should play} 27... Kh4 28. Rc4 Nxd6) 28. Rc7 {[%emt 0:02:09]} Nxd6 {[%emt 0:01:41]} 29. f4+ {[%emt 0:00:04]} Kf6 $1 {[%emt 0:00:10] aiming for ...Rg8.} ({Don't play} 29... Kh4 $6 30. Kg2 Bxf4 31. Rxf4 $11) 30. g5+ {[%emt 0:00:20]} Kf5 $1 {[%emt 0:02:09]} 31. gxh6 {[%emt 0:00:03]} Rg8+ {[%emt 0:02:21]} (31... Rc8 $17 32. Rd7 Rfd8 33. Rxd8 Rxd8) 32. Kf2 $1 $15 {[%emt 0:00:57]} f6 {[%emt 0:00:30]} (32... Rc8 $15 {stays ahead.} 33. Rd7 Rgd8 34. Rxd8 Rxd8) 33. Nc6 $1 $16 {[%emt 0:01:32]} Ne4+ {[%emt 0:00:54]} 34. Ke1 {[%emt 0:00:02] Active counter play!} Rg3 $2 {[%emt 0:01:29][%mdl 8192] This costs Black the game.} 35. Nxd8 $18 {[%emt 0:00:19] Strongly threatening Nc6.} Re3+ {[%emt 0:00:02]} 36. Kd1 {[%emt 0:00:04]} Rd3+ {[%emt 0:00:04]} 37. Kc1 {[%emt 0:00:09]} Rxd8 {[%emt 0:00:03]} 38. Rxh7 {[%emt 0:02:06][%mdl 4096] Endgame Rg7 is the strong threat. KRR-KRN} Rc8+ {[%emt 0:00:11]} 39. Kd1 {[%emt 0:00:03] Threatens to win with Rg7.} Rd8+ {[%emt 0:00:20]} 40. Ke1 $1 {[%emt 0:01:03]} Rd2 {[%emt 0:00:36] [#]} (40... Nd2 $142 41. Rf2 Ne4) 41. Rh1 $1 {[%emt 0:02:20]} Rxb2 {[%emt 0:00:18]} 42. Rh3 {[%emt 0:00:49]} Rb1+ {[%emt 0:02:34]} 43. Ke2 {[%emt 0:00:02]} Rb2+ {[%emt 0:00:15]} 44. Kd1 {[%emt 0:01:23]} Kg4 {[%emt 0:00:34]} (44... b3 $142) 45. Rg7+ {[%emt 0:00:48]} Kxh3 {[%emt 0:00:58] KRN-KR} 46. h7 {[%emt 0:00:05][%cal Rh7h8]} Nf2+ {[%emt 0:00:09]} 47. Ke1 {[%emt 0:00:28][%cal Rh7h8]} Nd3+ {[%emt 0:00:02] [#]} 48. Kf1 $1 {[%emt 0:00:07][%cal Rh7h8]} Rb1+ {[%emt 0:00:30]} 49. Ke2 {[%emt 0:00:02][%cal Rh7h8]} Nxf4+ {[%emt 0:00:07]} 50. Kf3 {[%emt 0:00:45]} Rf1+ {[%emt 0:00:43]} 51. Ke3 {[%emt 0:00:06]} Ng2+ {[%emt 0:01:26]} 52. Ke2 {[%emt 0:00:04]} Rf4 {[%emt 0:00:30]} 53. h8=Q+ {[%emt 0:00:07]} Nh4 {[%emt 0:00:04]} 54. Qa8 {[%emt 0:00:18] Weighted Error Value: White=0.16 (very precise) /Black=0.62} (54. Rg1 $142 Re4+ 55. Kd3) 1-0

[Event "Vezerkepzo GM May 2022"]
[Site "Budapest"]
[Date "2022.05.24"]
[Round "9.5"]
[White "Nagy, Gabor"]
[Black "Karavade, Eesha"]
[Result "1/2-1/2"]
[ECO "E51"]
[WhiteElo "2503"]
[BlackElo "2348"]
[Annotator "TA"]
[PlyCount "91"]
[EventDate "2022.05.18"]
[EventType "tourn"]
[EventCountry "HUN"]
[SourceTitle "playchess.com"]
[Source "ChessBase"]
[SourceQuality "1"]
[TimeControl "5400+30"]

{[%evp 20,91,35,34,48,36,33,41,52,46,81,11,22,0,0,0,0,0,22,20,24,23,23,23,23,23,23,0,23,23,23,23,24,0,47,0,125,49,49,34,34,34,34,0,34,24,34,34,34,24,24,34,34,24,48,24,24,0,0,0,0,0,0,0,11,0,11,11,11,0,0,0,11,0]} 1. d4 {[%emt 0:09:54]} Nf6 {[%emt 0:01:12]} 2. c4 {[%emt 0:00:10]} e6 {[%emt 0:00:07]} 3. Nc3 {[%emt 0:00:15]} Bb4 {[%emt 0:00:31]} 4. e3 {[%emt 0:00:16]} O-O {[%emt 0:01:01]} 5. Bd2 {[%emt 0:00:23]} d5 {[%emt 0:01:08]} 6. Nf3 {[%emt 0:00:21]} c5 {[%emt 0:06:28]} 7. a3 {[%emt 0:01:00]} Bxc3 {[%emt 0:01:19]} 8. Bxc3 {[%emt 0:00:24]} Ne4 {[%emt 0:01:23]} 9. Rc1 {[%emt 0:02:58]} Nxc3 {[%emt 0:04:04]} 10. Rxc3 {[%emt 0:00:13]} cxd4 {[%emt 0:00:05]} 11. Nxd4 $1 {[%emt 0:00:45] The main line 11.Nxd4 scores better than 11.Qxd4.} Nc6 {[%emt 0:09:22] E51: Nimzo-Indian: Rubinstein: 4...0-0 5 Nf3 d5.} 12. cxd5 {[%emt 0:01:40]} Qxd5 {[%emt 0:04:16]} 13. Nxc6 {[%emt 0:02:19]} bxc6 {[%emt 0:00:06] White is slightly better.} 14. Qc2 {[%emt 0:02:39] [#]} a5 $146 {[%emt 0:11:49] [#]} ({Predecessor:} 14... h6 15. f3 a5 16. Bc4 Qe5 17. f4 Qf6 18. O-O Ba6 19. Rf2 Rfd8 20. h3 Rd6 {1-0 (47) Nihal,S (2618)-Saduakassova,D (2519) Wijk aan Zee 2020}) 15. f3 {[%emt 0:05:49]} ({Of course not} 15. Rxc6 $6 Bb7 16. Rc3 Rfc8 $11) (15. Bd3 $1 $16) 15... Ba6 $11 {[%emt 0:06:02]} 16. Kf2 {[%emt 0:05:33]} Rfd8 {[%emt 0:08:28][%cal Bf8d8,Bd8d2,Bd2b2][%mdl 32]} 17. Bxa6 {[%emt 0:08:04]} Rxa6 {[%emt 0:00:02]} 18. Rc1 {[%emt 0:01:17]} Qd2+ {[%emt 0:00:54]} 19. Kf1 {[%emt 0:01:52]} h5 {[%emt 0:06:06]} 20. Qxd2 {[%emt 0:04:42]} Rxd2 {[%emt 0:00:02]} 21. Rxc6 {[%emt 0:00:22]} Rxc6 {[%emt 0:00:12]} 22. Rxc6 {[%emt 0:00:06]} Rxb2 {[%emt 0:00:04][%mdl 4096] Endgame KR-KR} 23. Rc8+ {[%emt 0:00:13]} Kh7 {[%emt 0:00:04]} 24. Rc5 {[%emt 0:00:05][%csl LRa5,LRh5]} Kg6 {[%emt 0:05:53]} 25. Rxa5 {[%emt 0:01:43]} h4 $1 {[%emt 0:01:19]} 26. h3 {[%emt 0:01:36]} Ra2 {[%emt 0:02:13]} (26... Rb1+ $11 27. Kf2 Rb2+ 28. Kg1 Rb1+ 29. Kh2 f5) 27. a4 {[%emt 0:00:07]} (27. Ra4 $14 {feels stronger.}) 27... e5 {[%emt 0:09:54] [#]} (27... Ra1+ $11 28. Kf2 Ra2+ 29. Kg1 Ra1+ 30. Kh2 f5) 28. Rxe5 {[%emt 0:02:32]} (28. Ra8 $1 $16) 28... Rxa4 {[%emt 0:07:47]} 29. Rd5 {[%emt 0:00:16]} Ra2 {[%emt 0:02:52]} 30. Rd4 {[%emt 0:00:15]} Kh5 {[%emt 0:00:07]} 31. Rd5+ {[%emt 0:00:43]} Kg6 {[%emt 0:00:16]} 32. Rd1 {[%emt 0:00:06]} Rb2 {[%emt 0:00:37]} 33. Re1 {[%emt 0:00:08]} Kf5 {[%emt 0:00:08]} 34. Re2 {[%emt 0:00:11]} Rb1+ {[%emt 0:01:15]} 35. Kf2 {[%emt 0:00:11]} g5 {[%emt 0:00:04]} 36. Rc2 {[%emt 0:00:39]} f6 {[%emt 0:05:04]} 37. Rc5+ {[%emt 0:00:22]} Kg6 {[%emt 0:00:02]} 38. f4 {[%emt 0:00:26]} gxf4 {[%emt 0:00:09] The position is equal.} 39. e4 {[%emt 0:01:02]} Rb2+ {[%emt 0:01:39]} 40. Kf3 {[%emt 0:00:37]} Rb3+ {[%emt 0:00:28]} 41. Kxf4 {[%emt 0:00:14]} Rg3 {[%emt 0:00:10]} 42. Rc8 {[%emt 0:00:12] Rg8+ would kill now.} Kg7 {[%emt 0:01:51] Against Rg8+} 43. Rc2 {[%emt 0:00:24]} Kg6 {[%emt 0:00:07]} 44. Rc8 {[%emt 0:01:16] White wants to mate with Rg8+.} Kg7 {[%emt 0:00:02] Inhibits Rg8+.} 45. Rc7+ {[%emt 0:00:10]} Kg6 {[%emt 0:00:26]} 46. Rc8 {[%emt 0:00:08] Weighted Error Value: White=0.12 (very precise) /Black=0.13 (very precise)} 1/2-1/2